Workbook

Sheet Pro_forma_1
B2: HW5 Lemonade Stand
B3: Instructions: | C3: Complete the following financial statements using the assumptions listed below to forecast year 1 through 5. Use cash as the plug to balance the balance sheet. Make sure you go to Excel options (Alt T O) and turn on enable iterative calculations under formulas. You will also need to calculate free cash flow to the firm (unlevered free cash flow)
B5: Sales growth | C5: 0.2
B6: Current assets/Sales | C6: 0.15
B7: Current liabilities/Sales | C7: 0.08
B8: Net fixed assets/Sales | C8: 0.8
B9: Costs of goods sold/Sales | C9: 0.5
B10: Depreciation rate | C10: 0.1
B11: Interest rate on debt | C11: 0.1
B12: Interest paid on cash and marketable securities | C12: 0.08
B13: Tax rate | C13: 0.4
B14: Dividend payout ratio | C14: 0.5
B16: Year | C16: 0 | D16: 1 | E16: 2 | F16: 3 | G16: 4 | H16: 5
B17: Income statement
B18: Sales | C18: 1000 | D18: =C18*(1+$C$5) -> 1200 | E18: =D18*(1+$C$5) -> 1440 | F18: 1728 | G18: 2073.6 | H18: 2488.32 | I18: =getformula(H18) -> <-- =G18*(1+$C$5)
B19: Costs of goods sold | C19: -500 | D19: =-D18*$C$9 -> -600 | E19: =-E18*$C$9 -> -720 | F19: -864 | G19: -1036.8 | H19: -1244.16 | I19: <-- =-H18*$C$9
B20: Interest payments on debt | C20: -40 | D20: =-$C$11*AVERAGE(C39:D39) -> -40 | E20: =-$C$11*AVERAGE(D39:E39) -> -40 | F20: -41.14110279 | G20: -46.07884067 | H20: -54.55726699 | I20: <-- =-$C$11*AVERAGE(G39:H39)
B21: Interest earned on cash and marketable securities | C21: 6.4 | D21: =$C$12*AVERAGE(C30:D30) -> 6.750479437 | E21: =$C$12*AVERAGE(D30:E30) -> 5.100424355 | F21: 1.549944908 | G21: 1.060938052e-07 | H21: 1.90113084e-06 | I21: <-- =$C$12*AVERAGE(G30:H30)
B22: Depreciation | C22: -100 | D22: =-$C$10*AVERAGE(C33:D33) -> -124.2105263 | E22: =-$C$10*AVERAGE(D33:E33) -> -155.8116343 | F22: -194.444438 | G22: -241.5901683 | H22: -299.034186 | I22: <-- =-$C$10*AVERAGE(G33:H33)
B23: Profit before tax | C23: 366.4 | D23: =SUM(D18:D22) -> 442.5399531 | E23: =SUM(E18:E22) -> 529.28879 | F23: 629.9644042 | G23: 749.1309912 | H23: 890.5685489 | I23: <-- =SUM(H18:H22)
B24: Taxes | C24: -146.56 | D24: =-D23*$C$13 -> -177.0159812 | E24: =-E23*$C$13 -> -211.715516 | F24: -251.9857617 | G24: -299.6523965 | H24: -356.2274196 | I24: <-- =-H23*$C$13
B25: Profit after tax | C25: 219.84 | D25: =D24+D23 -> 265.5239719 | E25: =E24+E23 -> 317.573274 | F25: 377.9786425 | G25: 449.4785947 | H25: 534.3411294 | I25: <-- =H24+H23
B26: Dividends | C26: -109.92 | D26: =-D25*$C$14 -> -132.7619859 | E26: =-E25*$C$14 -> -158.786637 | F26: -188.9893212 | G26: -224.7392973 | H26: -267.1705647 | I26: <-- =-H25*$C$14
B27: Retained earnings | C27: 109.92 | D27: =D25+D26 -> 132.7619859 | E27: =E25+E26 -> 158.786637 | F27: 188.9893212 | G27: 224.7392973 | H27: 267.1705647 | I27: <-- =H25+H26
I28: <--
B29: Balance sheet | I29: <--
B30: Cash and marketable securities | C30: 80 | D30: =D42-D35-D31 -> 88.76198594 | E30: =E42-E35-E31 -> 38.74862294 | F30: -7.770893262e-09 | G30: -1.524889285e-06 | H30: -1.725203117e-05 | I30: <-- =H42-H35-H31
B31: Current assets | C31: 200 | D31: =D18*$C$6 -> 180 | E31: =E18*$C$6 -> 216 | F31: 259.2 | G31: 311.04 | H31: 373.248 | I31: <-- =H18*$C$6
B32: Fixed assets | I32: <--
B33: At cost | C33: 1100 | D33: =D35-D34 -> 1384.210526 | E33: =E35-E34 -> 1732.022161 | F33: 2156.866599 | G33: 2674.936767 | H33: 3305.746953 | I33: <-- =H35-H34
B34: Depreciation | C34: -300 | D34: =C34+D22 -> -424.2105263 | E34: =D34+E22 -> -580.0221607 | F34: -774.4665986 | G34: -1016.056767 | H34: -1315.090953 | I34: <-- =G34+H22
B35: Net fixed assets | C35: 800 | D35: =D18*$C$8 -> 960 | E35: =E18*$C$8 -> 1152 | F35: 1382.4 | G35: 1658.88 | H35: 1990.656 | I35: <-- =H18*$C$8
B36: Total assets | C36: 1080 | D36: =D35+D31+D30 -> 1228.761986 | E36: =E35+E31+E30 -> 1406.748623 | F36: 1641.6 | G36: 1969.919998 | H36: 2363.903983 | I36: <-- =H35+H31+H30
I37: <--
B38: Current liabilities | C38: 80 | D38: =D18*$C$7 -> 96 | E38: =E18*$C$7 -> 115.2 | F38: 138.24 | G38: 165.888 | H38: 199.0656 | I38: <-- =H18*$C$7
B39: Debt | C39: 400 | D39: =MAX(D31+D35-D38-D40-D41,C39) -> 400 | E39: =MAX(E31+E35-E38-E40-E41,D39) -> 400 | F39: 422.8220558 | G39: 498.7547591 | H39: 592.3905996 | I39: =getformula(H39) -> <-- =MAX(H31+H35-H38-H40-H41,G39)
B40: Stock | C40: 450 | D40: =C40 -> 450 | E40: =D40 -> 450 | F40: 450 | G40: 450 | H40: 450 | I40: =getformula(H40) -> <-- =G40
B41: Accumulated retained earnings | C41: 150 | D41: =C41+D27 -> 282.7619859 | E41: =D41+E27 -> 441.5486229 | F41: 630.5379442 | G41: 855.2772415 | H41: 1122.447806 | I41: <-- =G41+H27
B42: Total liabilities and equity | C42: 1080 | D42: =SUM(D38:D41) -> 1228.761986 | E42: =SUM(E38:E41) -> 1406.748623 | F42: 1641.6 | G42: 1969.920001 | H42: 2363.904006 | I42: <-- =SUM(H38:H41)
I43: <--
I44: <--
B45: Year | C45: 0 | D45: 1 | E45: 2 | F45: 3 | G45: 4 | H45: 5 | I45: <-- 5
B46: Free cash flow calculation | I46: <--
B47: Profit after tax | D47: =D25 -> 265.5239719 | E47: =E25 -> 317.573274 | F47: 377.9786425 | G47: 449.4785947 | H47: 534.3411294 | I47: <-- =H25
B48: Add back depreciation | D48: =-D22 -> 124.2105263 | E48: =-E22 -> 155.8116343 | F48: 194.444438 | G48: 241.5901683 | H48: 299.034186 | I48: <-- =-H22
B49: Subtract increase in current assets | D49: =-(D31-C31) -> 20 | E49: =-(E31-D31) -> -36 | F49: -43.2 | G49: -51.84 | H49: -62.208 | I49: <-- =-(H31-G31)
B50: Add back increase in current liabilities | D50: =(D38-C38) -> 16 | E50: =(E38-D38) -> 19.2 | F50: 23.04 | G50: 27.648 | H50: 33.1776 | I50: <-- =(H38-G38)
B51: Subtract increase in fixed assets at cost | D51: =-(D33-C33) -> -284.2105263 | E51: =-(E33-D33) -> -347.8116343 | F51: -424.844438 | G51: -518.0701683 | H51: -630.810186 | I51: <-- =-(H33-G33)
B52: Add back after-tax interest on debt | D52: =-D20*(1-$C$13) -> 24 | E52: =-E20*(1-$C$13) -> 24 | F52: 24.68466167 | G52: 27.6473044 | H52: 32.7343602 | I52: <-- =-H20*(1-$C$13)
B53: Subtract after-tax interest on cash and mkt. securities | D53: =-D21*(1-$C$13) -> -4.050287662 | E53: -3.060254613 | F53: -0.929966945 | G53: -6.365628315e-08 | H53: -1.140678504e-06 | I53: <-- =-H21*(1-$C$13)
B54: Free cash flow | D54: =SUM(D47:D53) -> 161.4736842 | E54: =SUM(E47:E53) -> 129.7130194 | F54: 151.1733372 | G54: 176.453899 | H54: 206.2690884 | I54: <-- =SUM(H47:H53)
B55: Use our EBIT formula | D55: =(D18+D19+D22)*(1-$C$13)+D48+SUM(D49:D51) -> 161.4736842 | E55: =(E18+E19+E22)*(1-$C$13)+E48+SUM(E49:E51) -> 129.7130194 | F55: 151.1733372 | G55: 176.453899 | H55: 206.2690884 | I55: <-- =(H18+H19+H22)*(1-$C$13)+H48+SUM(H49:H51)
B56: CONSOLIDATED STATEMENT OF CASH FLOWS: RECONCILING THE CASH BALANCES | I56: <--
B57: Cash flow from operating activities | I57: <--
B58: Profit after tax | D58: =D25 -> 265.5239719 | E58: =E25 -> 317.573274 | F58: 377.9786425 | G58: 449.4785947 | H58: 534.3411294 | I58: <-- =H25
B59: Add back depreciation | D59: =-D22 -> 124.2105263 | E59: =-E22 -> 155.8116343 | F59: 194.444438 | G59: 241.5901683 | H59: 299.034186 | I59: <-- =-H22
B60: Adjust for changes in net working capital: | I60: <--
B61: Subtract increase in current assets | D61: =-(D31-C31) -> 20 | E61: =-(E31-D31) -> -36 | F61: -43.2 | G61: -51.84 | H61: -62.208 | I61: <-- =-(H31-G31)
B62: Add back increase in current liabilities | D62: =(D38-C38) -> 16 | E62: =(E38-D38) -> 19.2 | F62: 23.04 | G62: 27.648 | H62: 33.1776 | I62: <-- =(H38-G38)
B63: Net cash from operating activities | D63: =SUM(D58:D62) -> 425.7344982 | E63: =SUM(E58:E62) -> 456.5849084 | F63: 552.2630805 | G63: 666.876763 | H63: 804.3449153 | I63: <-- =SUM(H58:H62)
I64: <--
B65: Cash flow from investing activities | I65: <--
B66: Aquisitions of fixed assets--capital expenditures | D66: =-(D33-C33) -> -284.2105263 | E66: =-(E33-D33) -> -347.8116343 | F66: -424.844438 | G66: -518.0701683 | H66: -630.810186 | I66: <-- =-(H33-G33)
B67: Purchases of investment securities | D67: 0 | E67: 0 | F67: 0 | G67: 0 | H67: 0 | I67: <-- 0
B68: Proceeds from sales of investment securities | D68: 0 | E68: 0 | F68: 0 | G68: 0 | H68: 0 | I68: <-- 0
B69: Net cash used in investing activities | D69: =SUM(D66:D68) -> -284.2105263 | E69: =SUM(E66:E68) -> -347.8116343 | F69: -424.844438 | G69: -518.0701683 | H69: -630.810186 | I69: <-- =SUM(H66:H68)
I70: <--
B71: Cash flow from financing activities | I71: <--
B72: Net proceeds from borrowing activities | D72: =D39-C39 -> 0 | E72: =E39-D39 -> 0 | F72: 22.82205584 | G72: 75.93270322 | H72: 93.63584051 | I72: <-- =H39-G39
B73: Net proceeds from stock issues, repurchases | D73: =D40-C40 -> 0 | E73: 0 | F73: 0 | G73: 0 | H73: 0 | I73: <-- =H40-G40
B74: Dividends paid | D74: =D26 -> -132.7619859 | E74: =E26 -> -158.786637 | F74: -188.9893212 | G74: -224.7392973 | H74: -267.1705647 | I74: <-- =H26
B75: Net cash from financing activities | D75: =SUM(D72:D74) -> -132.7619859 | E75: =SUM(E72:E74) -> -158.786637 | F75: -166.1672654 | G75: -148.8065941 | H75: -173.5347242 | I75: <-- =SUM(H72:H74)
I76: <--
B77: Net increase in cash and cash equivalents | D77: =D75+D69+D63 -> 8.761985937 | E77: =E75+E69+E63 -> -50.013363 | F77: -38.74862292 | G77: 5.723362619e-07 | H77: 5.188223213e-06 | I77: <-- =H75+H69+H63
B78: Check: changes in cash and mkt. securities | D78: =D30-C30 -> 8.761985937 | E78: =E30-D30 -> -50.013363 | F78: -38.74862295 | G78: -1.517118392e-06 | H78: -1.572714189e-05 | I78: <-- =H30-G30
